fUST/lending_fUST_20250624
["ID","MTS","AMOUNT","RATE_DAILY","PERIOD"]
[367224538,1750707040072,-460.0,0.00019261,2]
[367224539,1750707040082,-488.59613851,0.00019261,2]
[367224540,1750707040091,-162.20263485,0.00019261,2]
[367224541,1750707040100,-199.98955916,0.00019261,2]
[367224543,1750707040110,-460.0,0.00019261,2]
[367224544,1750707040120,-460.0,0.00019261,2]
[367224545,1750707040129,-460.0,0.00019261,2]
[367224546,1750707040139,-460.0,0.00019261,2]
[367224547,1750707040149,-460.0,0.00019261,2]
[367224548,1750707040158,-460.0,0.00019261,2]
[367224549,1750707040168,-460.0,0.00019261,2]
[367224550,1750707040177,-460.0,0.00019261,2]
[367224551,1750707040186,-460.0,0.00019261,2]
[367224552,1750707040196,-462.33201513,0.00019261,2]
[367224553,1750707040205,-460.0,0.00019261,2]
[367224554,1750707040215,-460.0,0.00019261,2]
[367224555,1750707040224,-460.0,0.00019261,2]
[367224556,1750707040234,-460.0,0.00019261,2]
[367224557,1750707040243,-460.0,0.00019261,2]
[367224558,1750707040252,-460.0,0.00019261,2]
[367224559,1750707040262,-460.0,0.00019261,2]
[367224560,1750707040278,-460.0,0.00019261,2]
[367224561,1750707040287,-460.0,0.00019261,2]
[367224562,1750707040297,-500.0,0.00019261,2]
[367224563,1750707040307,-460.0,0.00019261,2]
[367224564,1750707040316,-460.0,0.00019261,2]
[367224565,1750707040325,-460.0,0.00019261,2]
[367224566,1750707040334,-460.0,0.00019261,2]
[367224567,1750707040344,-500.0,0.00019261,2]
[367224568,1750707040353,-9304.37,0.00019261,2]
[367224569,1750707040362,-599.09,0.00019261,2]
[367224570,1750707040371,-460.0,0.00019261,2]
[367224571,1750707040381,-467.82,0.00019261,2]
[367224572,1750707040390,-1044.14,0.00019261,2]
[367224573,1750707040400,-460.0,0.00019261,2]
[367224574,1750707040409,-589.45,0.00019261,2]
[367224575,1750707040418,-1008.44,0.00019261,2]
[367224576,1750707040428,-460.0,0.00019261,2]
[367224577,1750707040437,-2778.4,0.00019261,2]
[367224578,1750707040448,-460.0,0.00019261,2]
[367224579,1750707040457,-460.0,0.00019261,2]
[367224580,1750707040467,-460.0,0.00019261,2]
[367224581,1750707040475,-460.0,0.00019261,2]
[367224582,1750707040485,-500.0,0.00019261,2]
[367224583,1750707040495,-460.0,0.00019261,2]
[367224584,1750707040505,-975.44,0.00019261,2]
[367224585,1750707040515,-609.03,0.00019261,2]
[367224586,1750707040524,-3728.4,0.00019261,2]
[367224587,1750707040533,-460.0,0.00019261,2]
[367224588,1750707040543,-460.0,0.00019261,2]
[367224589,1750707040554,-460.0,0.00019261,2]
[367224590,1750707040563,-460.0,0.00019261,2]
[367224591,1750707040573,-460.0,0.00019261,2]
[367224592,1750707040583,-460.0,0.00019262,2]
[367224593,1750707040593,-460.0,0.00019262,2]
[367224594,1750707040602,-460.0,0.00019262,2]
[367224595,1750707040611,-460.0,0.00019262,2]
[367224596,1750707040620,-460.0,0.00019262,2]
[367224597,1750707040629,-460.0,0.00019262,2]
[367224598,1750707040639,-460.0,0.00019262,2]
[367224599,1750707040648,-460.0,0.00019262,2]
[367224600,1750707040658,-460.0,0.00019262,2]
[367224601,1750707040668,-460.0,0.00019262,2]
[367224602,1750707040678,-460.0,0.00019262,2]
[367224603,1750707040688,-460.0,0.00019262,2]
[367224604,1750707040698,-435.71406586,0.00019262,2]
[367224605,1750707040707,-460.0,0.00019262,2]
[367224606,1750707040719,-460.0,0.00019262,2]
[367224607,1750707040729,-460.0,0.00019262,2]
[367224608,1750707040742,-460.0,0.00019262,2]
[367224609,1750707040752,-460.93991888,0.00019262,2]
[367224610,1750707040762,-460.0,0.00019262,2]
[367224611,1750707040771,-460.0,0.00019262,2]
[367224612,1750707040782,-460.0,0.00019262,2]
[367224613,1750707040792,-412.92412149,0.00019262,2]
[367224614,1750707040801,-460.0,0.00019262,2]
[367224615,1750707040811,-484.35848871,0.00019262,2]
[367224616,1750707040822,-460.0,0.00019262,2]
[367224617,1750707040832,-460.0,0.00019262,2]
[367224618,1750707040842,-801.78,0.00019262,2]
[367224619,1750707040852,-460.0,0.00019262,2]
[367224620,1750707040861,-460.0,0.00019262,2]
[367224621,1750707040871,-460.0,0.00019262,2]
[367224622,1750707040880,-460.0,0.00019262,2]
[367224624,1750707040889,-460.0,0.00019262,2]
[367224626,1750707040899,-460.0,0.00019262,2]
[367224628,1750707040908,-460.0,0.00019262,2]
[367224630,1750707040918,-460.0,0.00019262,2]
[367224632,1750707040927,-460.0,0.00019262,2]
[367224634,1750707040937,-365.02705219,0.00019262,2]
[367224636,1750707040946,-460.0,0.00019262,2]
[367224638,1750707040955,-460.0,0.00019262,2]
[367224640,1750707040964,-460.0,0.00019262,2]
[367224642,1750707040974,-460.0,0.00019262,2]
[367224644,1750707040983,-460.0,0.00019262,2]
[367224646,1750707040993,-460.0,0.00019262,2]
[367224648,1750707041002,-460.0,0.00019262,2]
[367224650,1750707041012,-460.0,0.00019262,2]
[367224652,1750707041021,-460.0,0.00019262,2]
[367224654,1750707041030,-460.0,0.00019262,2]
[367224656,1750707041040,-460.0,0.00019262,2]
[367224658,1750707041049,-460.0,0.00019262,2]
[367224660,1750707041058,-460.0,0.00019262,2]
[367224662,1750707041068,-460.0,0.00019262,2]
[367224664,1750707041077,-460.0,0.00019262,2]
[367224666,1750707041086,-460.0,0.00019262,2]
[367224668,1750707041096,-460.0,0.00019262,2]
[367224670,1750707041105,-528.07452443,0.00019262,2]
[367224672,1750707041115,-460.0,0.00019262,2]
[367224674,1750707041124,-525.34266283,0.00019262,2]
[367224676,1750707041133,-460.0,0.00019262,2]
[367224678,1750707041143,-460.0,0.00019262,2]
[367224680,1750707041152,-460.0,0.00019262,2]
[367224682,1750707041161,-460.0,0.00019262,2]
[367224684,1750707041171,-460.0,0.00019262,2]
[367224686,1750707041180,-558.34907329,0.00019262,2]
[367224688,1750707041189,-460.0,0.00019262,2]
[367224690,1750707041199,-460.0,0.00019262,2]
[367224692,1750707041208,-460.0,0.00019262,2]
[367224694,1750707041218,-460.0,0.00019262,2]
[367224696,1750707041227,-460.0,0.00019262,2]
[367224698,1750707041236,-460.0,0.00019262,2]
[367224700,1750707041245,-460.0,0.00019262,2]
[367224702,1750707041255,-460.0,0.00019262,2]
[367224704,1750707041264,-460.0,0.00019262,2]
[367224706,1750707041273,-460.0,0.00019262,2]
[367224708,1750707041283,-460.0,0.00019262,2]
[367224710,1750707041292,-170.21566736,0.00019262,2]
[367224712,1750707041302,-460.0,0.00019262,2]
[367224714,1750707041311,-495.52,0.00019262,2]
[367224716,1750707041320,-460.0,0.00019262,2]
[367224718,1750707041330,-460.0,0.00019262,2]
[367224720,1750707041339,-460.0,0.00019262,2]
[367224723,1750707041348,-460.0,0.00019262,2]
[367224724,1750707041357,-460.0,0.00019262,2]
[367224726,1750707041366,-460.0,0.00019262,2]
[367224728,1750707041375,-518.39,0.00019262,2]
[367224730,1750707041384,-460.0,0.00019262,2]
[367224732,1750707041394,-460.0,0.00019262,2]
[367224734,1750707041403,-444.25176487,0.00019262,2]
[367224736,1750707041412,-932.58,0.00019262,2]
[367224738,1750707041421,-500.0,0.00019262,2]
[367224740,1750707041431,-460.0,0.00019262,2]
[367224742,1750707041440,-460.0,0.00019262,2]
[367224744,1750707041449,-444.34942606,0.00019262,2]
[367224746,1750707041458,-534.3414925,0.00019262,2]
[367224748,1750707041467,-460.0,0.00019262,2]
[367224750,1750707041476,-1357.79,0.00019262,2]
[367224752,1750707041485,-460.0,0.00019262,2]
[367224754,1750707041494,-620.87,0.00019262,2]
[367224756,1750707041503,-460.0,0.00019262,2]
[367224758,1750707041513,-1338.09,0.00019262,2]
[367224760,1750707041522,-460.0,0.00019262,2]
[367224762,1750707041531,-460.0,0.00019262,2]
[367224764,1750707041541,-460.0,0.00019262,2]
[367224766,1750707041550,-460.0,0.00019262,2]
[367224768,1750707041559,-524.66593378,0.00019262,2]
[367224770,1750707041568,-460.0,0.00019262,2]
[367224772,1750707041577,-757.63,0.00019262,2]
[367224774,1750707041586,-460.0,0.00019262,2]
[367224776,1750707041595,-294.15396467,0.00019262,2]
[367224778,1750707041604,-948.37,0.00019262,2]
[367224780,1750707041614,-481.66,0.00019262,2]
[367224782,1750707041623,-460.0,0.00019262,2]
[367224784,1750707041632,-460.0,0.00019262,2]
[367224785,1750707041642,-460.0,0.00019262,2]
[367224787,1750707041651,-304.03066694,0.00019262,2]
[367224789,1750707041659,-460.0,0.00019262,2]
[367224791,1750707041669,-460.0,0.00019262,2]
[367224793,1750707041679,-460.0,0.00019262,2]
[367224795,1750707041688,-460.0,0.00019262,2]
[367224797,1750707041697,-460.0,0.00019262,2]
[367224799,1750707041707,-460.0,0.00019262,2]
[367224801,1750707041716,-460.0,0.00019262,2]
[367224803,1750707041725,-460.0,0.00019262,2]
[367224805,1750707041737,-460.0,0.00019262,2]
[367224807,1750707041748,-1073.71,0.00019262,2]
[367224809,1750707041758,-460.0,0.00019262,2]
[367224812,1750707041767,-460.0,0.00019262,2]
[367224814,1750707041777,-460.0,0.00019262,2]
[367224816,1750707041787,-460.0,0.00019262,2]
[367224817,1750707041796,-563.95,0.00019262,2]
[367224819,1750707041805,-460.0,0.00019262,2]
[367224820,1750707041815,-460.0,0.00019262,2]
[367224821,1750707041825,-460.0,0.00019262,2]
[367224822,1750707041835,-460.0,0.00019262,2]
[367224823,1750707041844,-460.0,0.00019262,2]
[367224824,1750707041854,-500.0,0.00019262,2]
[367224825,1750707041863,-460.0,0.00019263,2]
[367224826,1750707041872,-460.0,0.00019263,2]
[367224827,1750707041882,-460.0,0.00019263,2]
[367224828,1750707041891,-460.0,0.00019263,2]
[367224829,1750707041901,-460.0,0.00019263,2]
[367224830,1750707041910,-460.0,0.00019263,2]
[367224831,1750707041919,-460.0,0.00019263,2]
[367224832,1750707041929,-460.0,0.00019263,2]
[367224833,1750707041940,-433.69325815,0.00019263,2]
[367224835,1750707041949,-460.0,0.00019263,2]
[367224836,1750707041959,-460.0,0.00019263,2]
[367224838,1750707041967,-500.0,0.00019263,2]
[367224840,1750707041977,-2368.82,0.00019263,2]
[367224842,1750707041986,-2063.01,0.00019263,2]
[367224844,1750707041995,-460.0,0.00019263,2]
[367224846,1750707042006,-460.0,0.00019263,2]
[367224848,1750707042015,-500.0,0.00019263,2]
[367224850,1750707042025,-500.0,0.00019265,2]
[367224852,1750707042034,-460.0,0.00019266,2]
[367224854,1750707042044,-460.0,0.00019266,2]
[367224856,1750707042054,-460.0,0.00019266,2]
[367224858,1750707042064,-460.0,0.00019266,2]
[367224860,1750707042074,-460.0,0.00019266,2]
[367224862,1750707042084,-520.2,0.00019266,2]
[367224864,1750707042093,-460.0,0.00019266,2]
[367224866,1750707042103,-460.0,0.00019266,2]
[367224868,1750707042112,-460.0,0.00019266,2]
[367224870,1750707042122,-460.0,0.00019266,2]
[367224872,1750707042132,-622.05,0.00019266,2]
[367224874,1750707042141,-986.55,0.00019266,2]
[367224876,1750707042150,-460.0,0.00019266,2]
[367224881,1750707042335,-460.0,0.00019266,2]
[367224882,1750707042346,-460.0,0.00019266,2]
[367224883,1750707042356,-460.0,0.00019266,2]
[367224884,1750707042365,-460.0,0.00019266,2]
[367224885,1750707042374,-460.0,0.00019266,2]
[367224886,1750707042383,-440.37008822,0.00019266,2]
[367224887,1750707042393,-460.0,0.00019266,2]
[367224888,1750707042403,-460.0,0.00019266,2]
[367224889,1750707042412,-402.03869345,0.00019266,2]
[367224890,1750707042421,-460.0,0.00019266,2]
[367224891,1750707042430,-460.0,0.00019266,2]
[367224892,1750707042439,-460.0,0.00019266,2]
[367224893,1750707042448,-461.0,0.00019266,2]
[367224894,1750707042458,-460.0,0.00019266,2]
[367224895,1750707042467,-460.0,0.00019266,2]
[367224896,1750707042476,-460.0,0.00019266,2]
[367224897,1750707042485,-460.0,0.00019266,2]
[367224898,1750707042495,-460.0,0.00019266,2]
[367224899,1750707042504,-460.0,0.00019266,2]
[367224900,1750707042514,-460.0,0.00019266,2]
[367224901,1750707042524,-500.0,0.00019266,2]
[367224902,1750707042533,-942.79,0.00019266,2]
[367224903,1750707042542,-460.0,0.00019266,2]
[367224904,1750707042551,-460.0,0.00019266,2]
[367224905,1750707042561,-502.22,0.00019266,2]
[367224906,1750707042570,-460.0,0.00019266,2]
[367224907,1750707042580,-460.0,0.00019266,2]
[367224908,1750707042590,-873.57,0.00019266,2]
[367224909,1750707042599,-460.0,0.00019266,2]
[367224910,1750707042609,-460.0,0.00019266,2]
[367224911,1750707042618,-287.80800468,0.00019266,2]
[367224912,1750707042628,-460.0,0.00019266,2]
[367224913,1750707042637,-460.0,0.00019266,2]
[367224914,1750707042647,-460.0,0.00019266,2]
[367224915,1750707042657,-460.0,0.00019266,2]
[367224916,1750707042666,-460.0,0.00019266,2]
[367224918,1750707042675,-1008.85,0.00019266,2]
[367224920,1750707042684,-487.92,0.00019266,2]
[367224922,1750707042694,-460.0,0.00019266,2]
[367224924,1750707042703,-460.0,0.00019266,2]
[367224926,1750707042713,-460.0,0.00019266,2]
[367224928,1750707042722,-460.0,0.00019266,2]
[367224930,1750707042731,-460.0,0.00019266,2]
[367224931,1750707042744,-460.0,0.00019266,2]
[367224932,1750707042754,-460.0,0.00019266,2]
[367224933,1750707042764,-460.0,0.00019266,2]
[367224934,1750707042774,-460.0,0.00019266,2]
[367224935,1750707042786,-574.23,0.00019266,2]
[367224936,1750707042796,-868.89,0.00019266,2]
[367224937,1750707042806,-460.0,0.00019266,2]
[367224938,1750707042816,-500.0,0.00019266,2]
[367224939,1750707042826,-500.0,0.00019266,2]
[367224940,1750707042835,-500.0,0.00019266,2]
[367224941,1750707042845,-743.63,0.00019266,2]
[367224942,1750707042855,-460.0,0.00019266,2]
[367224943,1750707042866,-520.21,0.00019266,2]
[367224944,1750707042875,-460.0,0.00019266,2]
[367224945,1750707042885,-1946.42,0.00019266,2]
[367224946,1750707042895,-460.0,0.00019266,2]
[367224947,1750707042904,-500.0,0.00019267,2]
[367224948,1750707042914,-500.0,0.00019268,2]
[367224949,1750707042925,-630.75605834,0.00019268,2]
[367224950,1750707042934,-630.75605834,0.00019268,2]
[367224951,1750707042945,-235.1,0.00019269,2]
[367224952,1750707042954,-500.0,0.00019273,2]
[367224953,1750707042964,-500.0,0.00019273,2]
[367224954,1750707042974,-172.99224575,0.00019273,2]
[367224955,1750707042983,-500.0,0.00019273,2]
[367224956,1750707042993,-500.0,0.00019352,2]
[367224957,1750707043003,-500.0,0.00019352,2]
[367224958,1750707043013,-500.0,0.00019352,2]
[367224959,1750707043023,-500.0,0.00019352,2]
[367224960,1750707043032,-508.66445798,0.00019353,2]
[367224961,1750707043042,-423.95007544,0.00019353,2]
[367224962,1750707043052,-460.0,0.00019353,2]
[367224963,1750707043061,-460.0,0.00019353,2]
[367224965,1750707043071,-460.0,0.00019353,2]
[367224966,1750707043080,-460.0,0.00019353,2]
[367224967,1750707043090,-460.0,0.00019353,2]
[367224968,1750707043100,-460.0,0.00019353,2]
[367224969,1750707043109,-343.70778224,0.00019353,2]
[367224970,1750707043119,-460.0,0.00019353,2]
[367224971,1750707043128,-460.0,0.00019353,2]
[367224972,1750707043138,-460.0,0.00019353,2]
[367224974,1750707043147,-460.0,0.00019353,2]
[367224976,1750707043157,-460.0,0.00019353,2]
[367224977,1750707043167,-460.0,0.00019353,2]
[367224979,1750707043176,-460.0,0.00019353,2]
[367224981,1750707043186,-460.0,0.00019353,2]
[367224983,1750707043196,-460.0,0.00019353,2]
[367224985,1750707043206,-500.463091,0.00019353,2]
[367224987,1750707043216,-460.0,0.00019353,2]
[367224989,1750707043226,-460.0,0.00019353,2]
[367224991,1750707043236,-460.0,0.00019353,2]
[367224993,1750707043246,-460.0,0.00019353,2]
[367224995,1750707043256,-460.0,0.00019353,2]
[367224998,1750707043266,-460.0,0.00019353,2]
[367225001,1750707043276,-460.0,0.00019353,2]
[367225004,1750707043286,-460.0,0.00019353,2]
[367225006,1750707043295,-478.62,0.00019353,2]
[367225008,1750707043307,-460.0,0.00019353,2]
[367225010,1750707043316,-500.0,0.00019353,2]
[367225012,1750707043326,-460.0,0.00019353,2]
[367225013,1750707043335,-460.0,0.00019353,2]
[367225016,1750707043346,-358.77848986,0.00019353,2]
[367225018,1750707043356,-460.0,0.00019353,2]
[367225020,1750707043366,-460.0,0.00019353,2]
[367225023,1750707043376,-460.0,0.00019353,2]
[367225025,1750707043386,-460.9054198,0.00019353,2]
[367225027,1750707043396,-460.0,0.00019353,2]
[367225029,1750707043406,-460.0,0.00019353,2]
[367225031,1750707043415,-460.0,0.00019353,2]
[367225033,1750707043424,-460.0,0.00019353,2]
[367225035,1750707043434,-811.96,0.00019353,2]
[367225037,1750707043444,-368.38001175,0.00019353,2]
[367225038,1750707043453,-460.0,0.00019353,2]
[367225040,1750707043463,-460.0,0.00019353,2]
[367225042,1750707043473,-460.0,0.00019353,2]
[367225044,1750707043483,-460.0,0.00019353,2]
[367225047,1750707043493,-460.0,0.00019353,2]
[367225049,1750707043503,-460.0,0.00019353,2]
[367225051,1750707043512,-460.0,0.00019353,2]
[367225052,1750707043522,-460.0,0.00019353,2]
[367225054,1750707043531,-460.0,0.00019353,2]
[367225056,1750707043541,-460.0,0.00019353,2]
[367225058,1750707043551,-460.0,0.00019353,2]
[367225060,1750707043562,-460.0,0.00019353,2]
[367225062,1750707043572,-460.0,0.00019353,2]
[367225064,1750707043583,-460.0,0.00019353,2]
[367225066,1750707043593,-460.0,0.00019353,2]
[367225069,1750707043603,-460.06318615,0.00019353,2]
[367225070,1750707043613,-460.0,0.00019353,2]
[367225071,1750707043623,-460.0,0.00019353,2]
[367225072,1750707043633,-460.0,0.00019353,2]
[367225073,1750707043643,-779.61,0.00019353,2]
[367225074,1750707043652,-524.96,0.00019353,2]
[367225075,1750707043662,-460.0,0.00019353,2]
[367225076,1750707043672,-460.0,0.00019353,2]
[367225077,1750707043681,-460.0,0.00019353,2]
[367225078,1750707043691,-460.0,0.00019353,2]
[367225079,1750707043701,-460.0,0.00019353,2]
[367225080,1750707043710,-440.0,0.00019353,2]
[367225081,1750707043720,-1000.0,0.00019353,2]
[367225082,1750707043729,-1000.0,0.00019353,2]
[367225083,1750707043740,-1000.0,0.00019353,2]
[367225084,1750707043750,-1000.0,0.00019353,2]
[367225085,1750707043760,-460.0,0.00019353,2]
[367225087,1750707043769,-460.0,0.00019353,2]
[367225089,1750707043779,-460.0,0.00019353,2]
[367225090,1750707043790,-460.0,0.00019353,2]
[367225091,1750707043799,-460.0,0.00019353,2]
[367225092,1750707043811,-512.54,0.00019353,2]
[367225094,1750707043822,-460.0,0.00019353,2]
[367225095,1750707043831,-460.0,0.00019353,2]
[367225097,1750707043840,-460.0,0.00019353,2]
[367225099,1750707043849,-612.64,0.00019353,2]
[367225101,1750707043860,-460.0,0.00019353,2]
[367225103,1750707043869,-460.0,0.00019353,2]
[367225105,1750707043879,-460.0,0.00019353,2]
[367225107,1750707043889,-460.0,0.00019353,2]
[367225109,1750707043899,-460.0,0.00019353,2]
[367225111,1750707043910,-460.0,0.00019353,2]
[367225114,1750707043919,-460.0,0.00019353,2]
[367225116,1750707043929,-460.0,0.00019353,2]
[367225119,1750707043938,-460.0,0.00019353,2]
[367225122,1750707043948,-460.0,0.00019353,2]
[367225125,1750707043958,-460.0,0.00019353,2]
[367225127,1750707043968,-460.0,0.00019353,2]
[367225129,1750707043978,-460.0,0.00019353,2]
[367225131,1750707043988,-1000.0,0.00019354,2]
[367225133,1750707043998,-1000.0,0.00019357,2]
[367225135,1750707044008,-1000.0,0.00019358,2]
[367225137,1750707044018,-1000.0,0.00019358,2]
[367225139,1750707044028,-1000.0,0.00019362,2]
[367225141,1750707044038,-1000.0,0.00019365,2]
[367225143,1750707044048,-500.0,0.00019365,2]
[367225145,1750707044058,-1000.0,0.00019366,2]
[367225147,1750707044068,-1000.0,0.00019366,2]
[367225149,1750707044078,-1000.0,0.00019366,2]
[367225151,1750707044088,-1125.8,0.00019371,2]
[367225153,1750707044097,-1877.31310316,0.00019402,2]
[367225155,1750707044107,-1397.91762135,0.00019502,2]
[367225157,1750707044117,-460.0,0.00019531,2]
[367225159,1750707044127,-460.0,0.00019531,2]
[367225161,1750707044137,-460.0,0.00019531,2]
[367225163,1750707044147,-460.0,0.00019531,2]
[367225164,1750707044156,-460.0,0.00019532,2]
[367225165,1750707044167,-460.0,0.00019532,2]
[367225166,1750707044177,-460.0,0.00019532,2]
[367225167,1750707044187,-460.0,0.00019532,2]
[367225168,1750707044197,-460.0,0.00019532,2]
[367225169,1750707044208,-460.0,0.00019532,2]
[367225170,1750707044218,-2648.3,0.00019532,2]
[367225171,1750707044228,-2744.44,0.00019532,2]
[367225172,1750707044238,-460.0,0.00019533,2]
[367225173,1750707044248,-460.0,0.00019533,2]
[367225174,1750707044259,-2378.74,0.00019533,2]
[367225175,1750707044269,-835.11,0.00019533,2]
[367225176,1750707044279,-460.99,0.00019533,2]
[367225177,1750707044289,-460.0,0.00019533,2]
[367225178,1750707044300,-1874.63,0.00019533,2]
[367225179,1750707044311,-3339.64,0.00019533,2]
[367225180,1750707044321,-596.66,0.00019533,2]
[367225181,1750707044331,-1527.92,0.00019533,2]
[367225182,1750707044341,-1339.25,0.00019533,2]
[367225183,1750707044350,-843.39,0.00019533,2]
[367225184,1750707044360,-840.53,0.00019533,2]
[367225185,1750707044369,-460.0,0.00019533,2]
[367225186,1750707044379,-1113.1,0.00019533,2]
[367225187,1750707044389,-987.19,0.00019533,2]
[367225188,1750707044399,-460.0,0.00019533,2]
[367225189,1750707044409,-483.08,0.00019533,2]
[367225190,1750707044418,-264.23184844,0.00019534,2]
[367225191,1750707044428,-460.0,0.00019534,2]
[367225192,1750707044438,-460.0,0.00019534,2]
[367225193,1750707044448,-460.0,0.00019534,2]
[367225194,1750707044458,-460.0,0.00019534,2]
[367225195,1750707044468,-460.0,0.00019534,2]
[367225196,1750707044479,-614.13,0.00019534,2]
[367225198,1750707044490,-460.0,0.00019534,2]
[367225200,1750707044499,-460.0,0.00019534,2]
[367225201,1750707044509,-460.0,0.00019534,2]
[367225203,1750707044518,-460.0,0.00019534,2]
[367225205,1750707044528,-460.0,0.00019534,2]
[367225207,1750707044538,-460.0,0.00019534,2]
[367225209,1750707044547,-460.0,0.00019534,2]
[367225211,1750707044559,-460.0,0.00019534,2]
[367225214,1750707044569,-1831.18,0.00019534,2]
[367225215,1750707044579,-532.28,0.00019534,2]
[367225218,1750707044588,-664.54,0.00019534,2]
[367225220,1750707044599,-460.0,0.00019534,2]
[367225221,1750707044609,-460.0,0.00019534,2]
[367225223,1750707044618,-549.41,0.00019534,2]
[367225225,1750707044627,-460.0,0.00019534,2]
[367225227,1750707044636,-1376.04,0.00019534,2]
[367225229,1750707044645,-460.0,0.00019534,2]
[367225231,1750707044655,-904.86,0.00019534,2]
[367225233,1750707044664,-870.43,0.00019534,2]
[367225235,1750707044673,-460.0,0.00019534,2]
[367225237,1750707044682,-460.0,0.00019534,2]
[367225239,1750707044692,-762.46,0.00019534,2]
[367225241,1750707044701,-761.2,0.00019534,2]
[367225243,1750707044711,-460.0,0.00019534,2]
[367225245,1750707044720,-460.0,0.00019534,2]
[367225247,1750707044730,-714.87,0.00019534,2]
[367225249,1750707044742,-3694.91,0.00019534,2]
[367225251,1750707044752,-487.35,0.00019534,2]
[367225253,1750707044762,-460.0,0.00019534,2]
[367225256,1750707044771,-460.0,0.00019534,2]
[367225258,1750707044781,-602.64,0.00019534,2]
[367225260,1750707044791,-1519.11,0.00019534,2]
[367225262,1750707044800,-1033.82,0.00019534,2]
[367225264,1750707044812,-666.37,0.00019534,2]
[367225266,1750707044821,-483.72,0.00019534,2]
[367225268,1750707044830,-251.44316587,0.00019534,2]
[367225270,1750707044840,-460.0,0.00019534,2]
[367225272,1750707044850,-460.0,0.00019534,2]
[367225274,1750707044859,-464.44,0.00019534,2]
[367225276,1750707044869,-460.0,0.00019534,2]
[367225278,1750707044879,-460.0,0.00019535,2]
[367225280,1750707044889,-460.0,0.00019535,2]
[367225282,1750707044898,-419.94351983,0.00019535,2]
[367225284,1750707044908,-460.0,0.00019535,2]
[367225286,1750707044918,-460.0,0.00019535,2]
[367225288,1750707044928,-460.0,0.00019535,2]
[367225290,1750707044937,-460.0,0.00019535,2]
[367225292,1750707044946,-460.0,0.00019535,2]
[367225294,1750707044955,-460.0,0.00019535,2]
[367225296,1750707044965,-9304.37,0.00019535,2]
[367225298,1750707044974,-599.09,0.00019535,2]
[367225300,1750707044984,-460.0,0.00019535,2]
[367225302,1750707044993,-467.82,0.00019535,2]
[367225304,1750707045003,-1044.14,0.00019535,2]
[367225306,1750707045012,-460.0,0.00019535,2]
[367225308,1750707045022,-589.45,0.00019535,2]
[367225310,1750707045031,-1008.44,0.00019535,2]
[367225312,1750707045040,-460.0,0.00019535,2]
[367225314,1750707045050,-2778.4,0.00019535,2]
[367225316,1750707045060,-460.0,0.00019535,2]
[367225318,1750707045069,-460.0,0.00019535,2]
[367225320,1750707045079,-460.0,0.00019535,2]